[Event "Senior Men Russian Championship 2022_HL"]
[Site "Saint-Petersburg, Russia"]
[Date "2022.10.02"]
[Round "9.2"]
[White "Ionov, Sergey"]
[Black "Balashov, Yuri S"]
[Result "1/2-1/2"]
[TimeControl "40+30"]
[WhiteElo "2513"]
[BlackElo "2395"]

1. d4 {[%clk 01:30:45]} {[%emt 00:00:13]} Nf6 {[%clk 01:30:52]} {[%emt
00:00:08]} 2. c4 {[%clk 01:30:39]} {[%emt 00:00:36]} e6 {[%clk 01:31:14]}
{[%emt 00:00:09]} 3. Nf3 {[%clk 01:30:00]} {[%emt 00:01:09]} d5 {[%clk
01:31:15]} {[%emt 00:00:29]} 4. Nc3 {[%clk 01:28:33]} {[%emt 00:01:57]} Be7
{[%clk 01:31:24]} {[%emt 00:00:21]} 5. g3 {[%clk 01:25:04]} {[%emt 00:03:58]}
O-O {[%clk 01:31:34]} {[%emt 00:00:20]} 6. Bg2 {[%clk 01:25:31]} {[%emt
00:00:04]} c5 {[%clk 01:28:45]} {[%emt 00:03:19]} 7. cxd5 {[%clk 01:19:25]}
{[%emt 00:06:35]} Nxd5 {[%clk 01:29:04]} {[%emt 00:00:10]} 8. O-O {[%clk
01:14:49]} {[%emt 00:05:08]} Nc6 {[%clk 01:29:24]} {[%emt 00:00:10]} 9. e4
{[%clk 01:04:48]} {[%emt 00:10:30]} Ndb4 {[%clk 01:28:47]} {[%emt 00:01:08]} 10.
a3 {[%clk 00:51:31]} {[%emt 00:13:47]} cxd4 {[%clk 01:28:38]} {[%emt 00:00:39]}
11. axb4 {[%clk 00:51:57]} {[%emt 00:00:05]} dxc3 {[%clk 01:29:03]} {[%emt
00:00:05]} 12. bxc3 {[%clk 00:52:15]} {[%emt 00:00:11]} Qc7 {[%clk 01:29:20]}
{[%emt 00:00:12]} 13. Be3 {[%clk 00:52:20]} {[%emt 00:00:26]} b6 {[%clk
01:26:09]} {[%emt 00:03:41]} 14. Qe2 {[%clk 00:49:25]} {[%emt 00:03:24]} Bb7
{[%clk 01:24:57]} {[%emt 00:01:42]} 15. Rfd1 {[%clk 00:40:31]} {[%emt
00:09:24]} Rfd8 {[%clk 01:19:52]} {[%emt 00:05:35]} 16. Qc4 {[%clk 00:39:26]}
{[%emt 00:01:35]} Rxd1+ {[%clk 01:17:46]} {[%emt 00:02:37]} 17. Rxd1 {[%clk
00:39:47]} {[%emt 00:00:09]} Rd8 {[%clk 01:16:34]} {[%emt 00:01:42]} 18. Ra1
{[%clk 00:36:53]} {[%emt 00:03:23]} Qd7 {[%clk 01:12:45]} {[%emt 00:04:20]} 19.
Nd4 {[%clk 00:30:36]} {[%emt 00:06:47]} Nxd4 {[%clk 01:11:21]} {[%emt
00:01:54]} 20. Bxd4 {[%clk 00:22:58]} {[%emt 00:08:08]} b5 {[%clk 01:11:25]}
{[%emt 00:00:26]} 21. Qb3 {[%clk 00:19:34]} {[%emt 00:03:52]} a6 {[%clk
01:11:40]} {[%emt 00:00:17]} 22. h4 {[%clk 00:19:21]} {[%emt 00:00:43]} Bf6
{[%clk 01:06:06]} {[%emt 00:06:05]} 23. Bxf6 {[%clk 00:19:06]} {[%emt
00:00:44]} gxf6 {[%clk 01:06:31]} {[%emt 00:00:04]} 24. Qc2 {[%clk 00:15:40]}
{[%emt 00:03:56]} e5 {[%clk 01:05:30]} {[%emt 00:01:32]} 25. Rc1 {[%clk
00:12:07]} {[%emt 00:04:02]} Qd2 {[%clk 01:03:45]} {[%emt 00:02:16]} 26. Qxd2
{[%clk 00:09:17]} {[%emt 00:03:21]} Rxd2 {[%clk 01:04:08]} {[%emt 00:00:06]} 27.
f3 {[%clk 00:08:36]} {[%emt 00:01:11]} Kf8 {[%clk 01:01:14]} {[%emt 00:03:24]}
28. c4 {[%clk 00:04:23]} {[%emt 00:04:43]} Bc6 {[%clk 01:00:33]} {[%emt
00:01:10]} 29. Bf1 {[%clk 00:02:46]} {[%emt 00:02:07]} Rb2 {[%clk 01:00:10]}
{[%emt 00:00:53]} 30. Ra1 {[%clk 00:02:42]} {[%emt 00:00:35]} bxc4 {[%clk
00:59:33]} {[%emt 00:01:07]} 31. Rxa6 {[%clk 00:02:12]} {[%emt 00:01:01]} Bb5
{[%clk 00:59:51]} {[%emt 00:00:11]} 32. Rb6 {[%clk 00:02:26]} {[%emt 00:00:16]}
Rxb4 {[%clk 01:00:14]} {[%emt 00:00:07]} 33. Bxc4 {[%clk 00:02:49]} {[%emt
00:00:07]} Rxc4 {[%clk 01:00:40]} {[%emt 00:00:04]} 34. Rxb5 {[%clk 00:03:17]}
{[%emt 00:00:02]} Rc2 {[%clk 00:59:41]} {[%emt 00:00:10]} 1/2-1/2

[Event "Senior Men Russian Championship 2022_HL"]
[Site "Saint-Petersburg, Russia"]
[Date "2022.10.02"]
[Round "9.3"]
[White "Lisenko, Alexander V"]
[Black "Loginov, Valery A"]
[Result "1/2-1/2"]
[TimeControl "40+30"]
[WhiteElo "2307"]
[BlackElo "2478"]

1. Nf3 {[%clk 01:30:57]} {[%emt 00:00:01]} Nf6 {[%clk 01:29:42]} {[%emt
00:01:19]} 2. c4 {[%clk 01:31:19]} {[%emt 00:00:08]} b6 {[%clk 01:29:38]}
{[%emt 00:00:34]} 3. g3 {[%clk 01:31:29]} {[%emt 00:00:19]} Bb7 {[%clk
01:29:59]} {[%emt 00:00:10]} 4. Bg2 {[%clk 01:31:53]} {[%emt 00:00:05]} g6
{[%clk 01:30:09]} {[%emt 00:00:21]} 5. b3 {[%clk 01:24:35]} {[%emt 00:07:48]}
Bg7 {[%clk 01:30:01]} {[%emt 00:00:38]} 6. Bb2 {[%clk 01:25:00]} {[%emt
00:00:05]} O-O {[%clk 01:28:26]} {[%emt 00:02:05]} 7. O-O {[%clk 01:24:47]}
{[%emt 00:00:42]} e6 {[%clk 01:27:44]} {[%emt 00:01:13]} 8. d4 {[%clk
01:21:55]} {[%emt 00:03:22]} d5 {[%clk 01:27:42]} {[%emt 00:00:31]} 9. Nbd2
{[%clk 01:16:19]} {[%emt 00:06:06]} Nbd7 {[%clk 01:23:45]} {[%emt 00:04:28]} 10.
Qc2 {[%clk 01:10:44]} {[%emt 00:06:04]} Rc8 {[%clk 01:20:42]} {[%emt 00:03:33]}
11. c5 {[%clk 01:05:23]} {[%emt 00:05:51]} c6 {[%clk 01:09:41]} {[%emt
00:11:31]} 12. b4 {[%clk 01:04:35]} {[%emt 00:01:19]} a5 {[%clk 01:07:48]}
{[%emt 00:02:24]} 13. a3 {[%clk 01:00:54]} {[%emt 00:04:10]} Ba6 {[%clk
01:07:58]} {[%emt 00:00:20]} 14. Rfe1 {[%clk 01:00:54]} {[%emt 00:00:29]} Qc7
{[%clk 01:08:12]} {[%emt 00:00:16]} 15. e3 {[%clk 00:57:48]} {[%emt 00:03:37]}
Ra8 {[%clk 00:59:34]} {[%emt 00:09:07]} 16. Bc3 {[%clk 00:53:47]} {[%emt
00:04:31]} axb4 {[%clk 00:59:25]} {[%emt 00:00:40]} 17. axb4 {[%clk 00:47:35]}
{[%emt 00:06:42]} Bb5 {[%clk 00:59:18]} {[%emt 00:00:37]} 18. Ra2 {[%clk
00:44:04]} {[%emt 00:04:00]} bxc5 {[%clk 00:54:23]} {[%emt 00:05:25]} 19. bxc5
{[%clk 00:43:43]} {[%emt 00:00:52]} Bd3 {[%clk 00:53:51]} {[%emt 00:01:02]} 20.
Qb2 {[%clk 00:42:48]} {[%emt 00:01:25]} Ne4 {[%clk 00:50:22]} {[%emt 00:03:59]}
21. Nxe4 {[%clk 00:36:06]} {[%emt 00:07:11]} Bxe4 {[%clk 00:46:32]} {[%emt
00:04:20]} 22. Rea1 {[%clk 00:34:11]} {[%emt 00:02:26]} Rxa2 {[%clk 00:46:41]}
{[%emt 00:00:21]} 23. Qxa2 {[%clk 00:33:21]} {[%emt 00:01:19]} Rb8 {[%clk
00:46:30]} {[%emt 00:00:42]} 24. Qa3 {[%clk 00:28:33]} {[%emt 00:05:16]} h6
{[%clk 00:42:51]} {[%emt 00:04:09]} 25. Nd2 {[%clk 00:27:17]} {[%emt 00:01:46]}
Bxg2 {[%clk 00:40:48]} {[%emt 00:02:34]} 26. Kxg2 {[%clk 00:27:43]} {[%emt
00:00:05]} Kh7 {[%clk 00:37:51]} {[%emt 00:03:27]} 27. Qa5 {[%clk 00:24:50]}
{[%emt 00:03:23]} Qc8 {[%clk 00:37:54]} {[%emt 00:00:27]} 28. Rb1 {[%clk
00:17:59]} {[%emt 00:07:20]} Ra8 {[%clk 00:30:16]} {[%emt 00:08:08]} 29. Qb4
{[%clk 00:17:57]} {[%emt 00:00:32]} Rb8 {[%clk 00:28:16]} {[%emt 00:02:30]} 30.
Qa5 {[%clk 00:18:20]} {[%emt 00:00:06]} Ra8 {[%clk 00:17:09]} {[%emt 00:11:39]}
31. Qb4 {[%clk 00:18:44]} {[%emt 00:00:06]} Rb8 {[%clk 00:17:34]} {[%emt
00:00:04]} 1/2-1/2

[Event "Senior Men Russian Championship 2022_HL"]
[Site "Saint-Petersburg, Russia"]
[Date "2022.10.02"]
[Round "9.5"]
[White "Vul, Arkadi Eremeevich"]
[Black "Dragomarezkij, Evgeni"]
[Result "1/2-1/2"]
[TimeControl "40+30"]
[WhiteElo "2181"]
[BlackElo "2297"]

1. Nf3 {[%clk 01:30:55]} {[%emt 00:00:05]} Nf6 {[%clk 01:31:15]} {[%emt
00:00:14]} 2. c4 {[%clk 01:31:08]} {[%emt 00:00:17]} b6 {[%clk 01:31:30]}
{[%emt 00:00:14]} 3. g3 {[%clk 01:30:52]} {[%emt 00:00:47]} Bb7 {[%clk
01:31:37]} {[%emt 00:00:23]} 4. Bg2 {[%clk 01:31:10]} {[%emt 00:00:12]} c5
{[%clk 01:31:28]} {[%emt 00:00:38]} 5. O-O {[%clk 01:30:50]} {[%emt 00:00:50]}
g6 {[%clk 01:30:23]} {[%emt 00:01:36]} 6. Nc3 {[%clk 01:28:55]} {[%emt
00:02:24]} Bg7 {[%clk 01:29:49]} {[%emt 00:01:05]} 7. d4 {[%clk 01:28:56]}
{[%emt 00:00:29]} cxd4 {[%clk 01:27:15]} {[%emt 00:03:04]} 8. Nxd4 {[%clk
01:28:56]} {[%emt 00:00:30]} Bxg2 {[%clk 01:26:47]} {[%emt 00:00:57]} 9. Kxg2
{[%clk 01:29:23]} {[%emt 00:00:03]} O-O {[%clk 01:26:16]} {[%emt 00:01:01]} 10.
e4 {[%clk 01:27:53]} {[%emt 00:02:01]} Qc7 {[%clk 01:25:16]} {[%emt 00:01:30]}
11. b3 {[%clk 01:27:53]} {[%emt 00:00:30]} Nxe4 {[%clk 01:24:38]} {[%emt
00:01:08]} 12. Nxe4 {[%clk 01:26:54]} {[%emt 00:01:29]} Qe5 {[%clk 01:24:05]}
{[%emt 00:01:02]} 13. Qf3 {[%clk 01:26:41]} {[%emt 00:00:43]} Qxd4 {[%clk
01:24:09]} {[%emt 00:00:27]} 14. Ba3 {[%clk 01:20:47]} {[%emt 00:06:24]} Nc6
{[%clk 01:22:00]} {[%emt 00:02:39]} 15. Rad1 {[%clk 01:20:01]} {[%emt
00:01:16]} Qe5 {[%clk 01:22:02]} {[%emt 00:00:27]} 16. Rxd7 {[%clk 01:19:50]}
{[%emt 00:00:41]} Qa5 {[%clk 01:21:16]} {[%emt 00:01:17]} 17. Bxe7 {[%clk
01:18:41]} {[%emt 00:01:38]} Ne5 {[%clk 01:21:17]} {[%emt 00:00:29]} 18. Qd1
{[%clk 01:18:09]} {[%emt 00:01:02]} Nxd7 {[%clk 01:17:41]} {[%emt 00:04:06]} 19.
Qxd7 {[%clk 01:18:23]} {[%emt 00:00:16]} Qxa2 {[%clk 01:16:26]} {[%emt
00:01:46]} 20. Bxf8 {[%clk 01:16:54]} {[%emt 00:01:59]} Rxf8 {[%clk 01:16:32]}
{[%emt 00:00:24]} 21. Qd3 {[%clk 01:16:21]} {[%emt 00:01:03]} 1/2-1/2

[Event "Senior Men Russian Championship 2022_HL"]
[Site "Saint-Petersburg, Russia"]
[Date "2022.10.02"]
[Round "9.7"]
[White "Provotorov, Alexandr P."]
[Black "Pushkov, Nikolai"]
[Result "1-0"]
[TimeControl "40+30"]
[WhiteElo "2277"]
[BlackElo "2206"]

1. Nf3 {[%clk 01:30:38]} {[%emt 00:00:20]} Nf6 {[%clk 01:30:49]} {[%emt
00:00:12]} 2. e3 {[%clk 01:30:41]} {[%emt 00:00:28]} e6 {[%clk 01:30:47]}
{[%emt 00:00:31]} 3. c4 {[%clk 01:28:13]} {[%emt 00:02:58]} d5 {[%clk
01:30:56]} {[%emt 00:00:22]} 4. Nc3 {[%clk 01:27:48]} {[%emt 00:00:54]} Be7
{[%clk 01:31:04]} {[%emt 00:00:22]} 5. d4 {[%clk 01:25:09]} {[%emt 00:03:09]}
O-O {[%clk 01:31:19]} {[%emt 00:00:15]} 6. Bd3 {[%clk 01:24:28]} {[%emt
00:01:12]} b6 {[%clk 01:29:35]} {[%emt 00:02:14]} 7. O-O {[%clk 01:24:45]}
{[%emt 00:00:11]} Bb7 {[%clk 01:28:19]} {[%emt 00:01:48]} 8. b3 {[%clk
01:25:06]} {[%emt 00:00:09]} Nbd7 {[%clk 01:28:26]} {[%emt 00:00:23]} 9. Bb2
{[%clk 01:25:28]} {[%emt 00:00:08]} c5 {[%clk 01:26:53]} {[%emt 00:02:03]} 10.
cxd5 {[%clk 01:17:32]} {[%emt 00:08:25]} exd5 {[%clk 01:24:59]} {[%emt
00:02:24]} 11. Qe2 {[%clk 01:17:47]} {[%emt 00:00:15]} Ne4 {[%clk 01:22:57]}
{[%emt 00:02:32]} 12. Ba6 {[%clk 01:08:10]} {[%emt 00:10:07]} Nxc3 {[%clk
01:12:11]} {[%emt 00:11:16]} 13. Bxc3 {[%clk 01:08:21]} {[%emt 00:00:20]} Qc8
{[%clk 01:11:50]} {[%emt 00:00:51]} 14. Bxb7 {[%clk 01:07:27]} {[%emt
00:01:23]} Qxb7 {[%clk 01:12:18]} {[%emt 00:00:02]} 15. Rfd1 {[%clk 01:02:45]}
{[%emt 00:05:11]} Bf6 {[%clk 01:08:08]} {[%emt 00:04:40]} 16. Rac1 {[%clk
01:02:57]} {[%emt 00:00:19]} Rac8 {[%clk 01:08:21]} {[%emt 00:00:17]} 17. h3
{[%clk 00:59:48]} {[%emt 00:03:38]} Rfe8 {[%clk 01:04:40]} {[%emt 00:04:12]} 18.
dxc5 {[%clk 00:58:22]} {[%emt 00:01:56]} bxc5 {[%clk 01:04:22]} {[%emt
00:00:49]} 19. Qd3 {[%clk 00:55:34]} {[%emt 00:03:17]} Bxc3 {[%clk 01:03:44]}
{[%emt 00:01:07]} 20. Rxc3 {[%clk 00:55:40]} {[%emt 00:00:24]} Nb6 {[%clk
01:01:30]} {[%emt 00:02:45]} 21. Rdc1 {[%clk 00:50:57]} {[%emt 00:05:14]} c4
{[%clk 01:01:18]} {[%emt 00:00:41]} 22. Qf5 {[%clk 00:50:48]} {[%emt 00:00:39]}
g6 {[%clk 01:01:26]} {[%emt 00:00:22]} 23. Qf4 {[%clk 00:50:32]} {[%emt
00:00:46]} Qe7 {[%clk 00:56:40]} {[%emt 00:05:16]} 24. Nd4 {[%clk 00:49:58]}
{[%emt 00:01:04]} Qd7 {[%clk 00:52:38]} {[%emt 00:04:31]} 25. Qf3 {[%clk
00:45:19]} {[%emt 00:05:09]} cxb3 {[%clk 00:50:56]} {[%emt 00:02:13]} 26. axb3
{[%clk 00:45:29]} {[%emt 00:00:19]} Rxc3 {[%clk 00:50:32]} {[%emt 00:00:54]} 27.
Rxc3 {[%clk 00:45:53]} {[%emt 00:00:07]} Rc8 {[%clk 00:50:53]} {[%emt
00:00:09]} 28. Rxc8+ {[%clk 00:46:05]} {[%emt 00:00:18]} Nxc8 {[%clk 00:50:45]}
{[%emt 00:00:41]} 29. Qf4 {[%clk 00:44:51]} {[%emt 00:01:40]} Kg7 {[%clk
00:46:05]} {[%emt 00:05:11]} 30. Qe5+ {[%clk 00:44:41]} {[%emt 00:00:41]} f6
{[%clk 00:45:36]} {[%emt 00:00:59]} 31. Qf4 {[%clk 00:44:04]} {[%emt 00:01:07]}
Nd6 {[%clk 00:45:37]} {[%emt 00:00:28]} 32. g4 {[%clk 00:44:12]} {[%emt
00:00:22]} Nf7 {[%clk 00:44:19]} {[%emt 00:01:49]} 33. Kg2 {[%clk 00:44:26]}
{[%emt 00:00:16]} Qe7 {[%clk 00:41:38]} {[%emt 00:03:11]} 34. h4 {[%clk
00:36:06]} {[%emt 00:08:50]} Ne5 {[%clk 00:37:16]} {[%emt 00:04:50]} 35. Kg3
{[%clk 00:32:52]} {[%emt 00:03:44]} a6 {[%clk 00:34:24]} {[%emt 00:03:24]} 36.
Kg2 {[%clk 00:32:16]} {[%emt 00:01:05]} Kg8 {[%clk 00:31:00]} {[%emt 00:03:54]}
37. h5 {[%clk 00:24:25]} {[%emt 00:08:21]} Nd3 {[%clk 00:25:16]} {[%emt
00:06:14]} 38. Qb8+ {[%clk 00:23:59]} {[%emt 00:00:56]} Kg7 {[%clk 00:25:34]}
{[%emt 00:00:12]} 39. Qc8 {[%clk 00:20:50]} {[%emt 00:03:40]} Kh6 {[%clk
00:21:03]} {[%emt 00:05:00]} 40. hxg6 {[%clk 00:50:04]} {[%emt 00:01:17]} Qd8
{[%emt 00:06:15]} 41. Qc6 1-0

[Event "Senior Men Russian Championship 2022_HL"]
[Site "Saint-Petersburg, Russia"]
[Date "2022.10.02"]
[Round "9.8"]
[White "Osmolny, Vladimir I."]
[Black "Zhelnin, Vladimir V"]
[Result "0-1"]
[TimeControl "40+30"]
[WhiteElo "2092"]
[BlackElo "2344"]

1. d4 {[%clk 01:29:17]} {[%emt 00:01:42]} d6 {[%clk 01:30:22]} {[%emt
00:00:38]} 2. Nf3 {[%clk 01:29:15]} {[%emt 00:00:33]} g6 {[%clk 01:29:02]}
{[%emt 00:01:50]} 3. e4 {[%clk 01:28:08]} {[%emt 00:01:36]} Bg7 {[%clk
01:29:10]} {[%emt 00:00:22]} 4. Bd3 {[%clk 01:25:54]} {[%emt 00:02:44]} Nf6
{[%clk 01:24:43]} {[%emt 00:04:57]} 5. O-O {[%clk 01:22:22]} {[%emt 00:04:02]}
O-O {[%clk 01:22:50]} {[%emt 00:02:24]} 6. Re1 {[%clk 01:22:06]} {[%emt
00:00:46]} c6 {[%clk 01:07:52]} {[%emt 00:15:28]} 7. Nbd2 {[%clk 01:19:52]}
{[%emt 00:02:44]} Qc7 {[%clk 01:06:47]} {[%emt 00:01:35]} 8. Nf1 {[%clk
01:15:08]} {[%emt 00:05:14]} e5 {[%clk 01:06:54]} {[%emt 00:00:23]} 9. c3
{[%clk 01:13:46]} {[%emt 00:01:52]} Re8 {[%clk 01:03:32]} {[%emt 00:03:51]} 10.
h3 {[%clk 01:13:20]} {[%emt 00:00:56]} Nbd7 {[%clk 01:03:44]} {[%emt 00:00:19]}
11. dxe5 {[%clk 01:09:48]} {[%emt 00:04:02]} dxe5 {[%clk 01:02:13]} {[%emt
00:02:01]} 12. Be3 {[%clk 01:07:56]} {[%emt 00:02:22]} Nf8 {[%clk 01:02:07]}
{[%emt 00:00:36]} 13. Ng3 {[%clk 01:04:37]} {[%emt 00:03:48]} Ne6 {[%clk
01:01:22]} {[%emt 00:01:15]} 14. Ne2 {[%clk 00:57:40]} {[%emt 00:07:27]} Bd7
{[%clk 00:54:29]} {[%emt 00:07:24]} 15. Ng5 {[%clk 00:56:47]} {[%emt 00:01:23]}
c5 {[%clk 00:52:37]} {[%emt 00:02:22]} 16. Nxe6 {[%clk 00:55:38]} {[%emt
00:01:38]} Bxe6 {[%clk 00:52:58]} {[%emt 00:00:09]} 17. c4 {[%clk 00:56:00]}
{[%emt 00:00:08]} Red8 {[%clk 00:39:57]} {[%emt 00:13:31]} 18. Qc2 {[%clk
00:55:23]} {[%emt 00:01:08]} b5 {[%clk 00:39:04]} {[%emt 00:01:23]} 19. b3
{[%clk 00:45:37]} {[%emt 00:10:16]} b4 {[%clk 00:39:17]} {[%emt 00:00:17]} 20.
g4 {[%clk 00:42:14]} {[%emt 00:03:53]} h5 {[%clk 00:33:58]} {[%emt 00:05:48]}
21. g5 {[%clk 00:37:28]} {[%emt 00:05:17]} Nh7 {[%clk 00:32:37]} {[%emt
00:01:51]} 22. h4 {[%clk 00:37:20]} {[%emt 00:00:37]} f6 {[%clk 00:27:06]}
{[%emt 00:06:02]} 23. Kh2 {[%clk 00:36:50]} {[%emt 00:00:59]} fxg5 {[%clk
00:27:24]} {[%emt 00:00:13]} 24. hxg5 {[%clk 00:36:58]} {[%emt 00:00:22]} Rf8
{[%clk 00:25:40]} {[%emt 00:02:14]} 25. Ng1 {[%clk 00:29:14]} {[%emt 00:08:12]}
Rad8 {[%clk 00:19:24]} {[%emt 00:06:47]} 26. Bf1 {[%clk 00:29:04]} {[%emt
00:00:41]} Rf4 {[%clk 00:18:52]} {[%emt 00:01:02]} 27. f3 {[%clk 00:25:17]}
{[%emt 00:04:17]} Nxg5 {[%clk 00:17:40]} {[%emt 00:01:42]} 28. Bxf4 {[%clk
00:25:08]} {[%emt 00:00:38]} exf4 {[%clk 00:17:58]} {[%emt 00:00:12]} 29. Rad1
{[%clk 00:25:15]} {[%emt 00:00:23]} Bd4 {[%clk 00:17:56]} {[%emt 00:00:33]} 30.
Qg2 {[%clk 00:14:56]} {[%emt 00:10:48]} Qe5 {[%clk 00:17:18]} {[%emt 00:01:07]}
31. Rd3 {[%clk 00:14:39]} {[%emt 00:00:48]} Rf8 {[%clk 00:09:48]} {[%emt
00:08:00]} 32. Kh1 {[%clk 00:11:10]} {[%emt 00:03:59]} Kg7 {[%clk 00:09:47]}
{[%emt 00:00:31]} 33. Ne2 {[%clk 00:10:57]} {[%emt 00:00:43]} Be3 {[%clk
00:07:29]} {[%emt 00:02:48]} 34. Ng1 {[%clk 00:08:11]} {[%emt 00:03:16]} h4
{[%clk 00:04:32]} {[%emt 00:03:26]} 35. Qh2 {[%clk 00:08:07]} {[%emt 00:00:34]}
Qf6 {[%clk 00:04:08]} {[%emt 00:00:55]} 36. Rdxe3 {[%clk 00:04:22]} {[%emt
00:04:15]} fxe3 {[%clk 00:04:31]} {[%emt 00:00:06]} 37. Rxe3 {[%clk 00:04:49]}
{[%emt 00:00:03]} Qf4 {[%clk 00:02:18]} {[%emt 00:02:42]} 38. Qxf4 {[%clk
00:04:45]} {[%emt 00:00:34]} Rxf4 {[%clk 00:02:48]} 39. Be2 {[%clk 00:04:56]}
{[%emt 00:00:20]} Nf7 {[%clk 00:02:46]} {[%emt 00:00:30]} 40. Rd3 {[%clk
00:31:31]} {[%emt 00:03:56]} Kf6 {[%clk 00:32:16]} {[%emt 00:01:00]} 41. Bd1
{[%clk 00:31:02]} {[%emt 00:01:00]} Ke7 {[%clk 00:32:22]} {[%emt 00:00:24]} 42.
Kg2 {[%clk 00:27:30]} {[%emt 00:04:01]} Ne5 {[%clk 00:32:35]} {[%emt 00:00:17]}
43. Re3 {[%clk 00:24:25]} {[%emt 00:03:35]} Rf8 {[%clk 00:31:21]} {[%emt
00:01:44]} 44. Be2 {[%clk 00:20:36]} {[%emt 00:04:19]} g5 {[%clk 00:30:46]}
{[%emt 00:01:05]} 45. Bf1 {[%clk 00:16:27]} {[%emt 00:04:39]} Rd8 {[%clk
00:29:43]} {[%emt 00:01:33]} 46. Kf2 {[%clk 00:13:18]} {[%emt 00:03:40]} Rd2+
{[%clk 00:24:36]} {[%emt 00:05:36]} 47. Re2 {[%clk 00:12:12]} {[%emt 00:01:36]}
Nd3+ {[%clk 00:24:29]} {[%emt 00:00:37]} 48. Ke3 {[%clk 00:12:26]} {[%emt
00:00:16]} Rd1 {[%clk 00:24:43]} {[%emt 00:00:16]} 49. Bh3 {[%clk 00:07:05]}
{[%emt 00:05:51]} Rxg1 {[%clk 00:24:25]} {[%emt 00:00:48]} 50. Bxe6 {[%clk
00:07:26]} {[%emt 00:00:09]} Nf4 {[%clk 00:24:33]} {[%emt 00:00:21]} 0-1